bitfinex/quotes_SOLUSD_20250219
["timestamp","ask_amount","ask_price","bid_price","bid_amount"]
[1739980829392,0.063,170.13,170.09,17.36369974]
[1739980829700,0.063,170.13,170.08,5.8795]
[1739980829701,17.42669974,170.13,170.08,5.8795]
[1739980829998,17.36369974,170.11,170.05,23.24429974]
[1739980830174,100.12669974,170.13,170.07,17.36369974]
[1739980830370,82.763,170.13,170.08,17.36369974]
[1739980830776,82.763,170.13,170.07,17.36369974]
[1739980830975,100.12669974,170.13,170.05,5.8806]
[1739980831191,17.36369974,170.11,170.05,17.36369974]
[1739980831390,17.36369974,170.07,170.01,23.24569974]
[1739980831598,17.36369974,170.07,170.01,5.882]
[1739980831806,17.36369974,170.09,170.02,17.36369974]
[1739980832174,102.73504439,170.1,170.03,17.36369974]
[1739980832395,102.73504439,170.1,170.05,17.36369974]
[1739980832396,84.277,170.1,170.05,17.36369974]
[1739980832706,23.73329974,170.11,170.05,17.36369974]
[1739980833402,23.73329974,170.11,170.06,5.8802]
[1739980833985,17.36369974,170.09,170.04,5.8806]
[1739980834181,17.36369974,170.08,170.04,5.8806]
[1739980834504,17.36369974,170.09,170.04,5.8806]
[1739980835005,17.36369974,170.1,170.04,5.8806]
[1739980835205,17.36369974,170.1,170.04,23.24429974]
[1739980835791,28.65329974,170.11,170.04,23.24429974]
[1739980835979,28.71629974,170.11,170.04,23.24429974]
[1739980836179,17.36369974,170.1,170.04,23.24429974]
[1739980837083,17.36369974,170.09,170.04,5.8806]
[1739980837804,17.36369974,170.09,170.03,5.8813]
[1739980838010,17.36369974,170.08,170.03,5.8813]
[1739980839488,82.7,170.1,170.04,17.36369974]
[1739980839684,100.06369974,170.1,170.03,23.24499974]
[1739980840195,4.983,170.11,170.05,17.36369974]
[1739980840398,4.983,170.11,170.06,17.36369974]
[1739980840601,23.44104439,170.11,170.04,17.36369974]
[1739980840792,23.44104439,170.11,170.03,23.24499974]
[1739980840793,17.36369974,170.1,170.03,23.24499974]
[1739980840982,4.983,170.11,170.05,17.36369974]
[1739980841592,22.34669974,170.11,170.05,17.36369974]
[1739980842092,22.34669974,170.11,170.05,5.8806]
[1739980842285,0.063,170.11,170.06,17.36369974]
[1739980843000,0.063,170.11,170.07,17.36369974]
[1739980843305,0.063,170.11,170.05,102.36395292]
[1739980843306,0.063,170.11,170.08,17.36369974]
[1739980843713,0.063,170.11,170.09,17.36369974]
[1739980844386,0.063,170.11,170.1,5.8788]
[1739980846206,0.063,170.11,170.1,23.24249974]
[1739980849790,0.0001,170.11,170.1,23.24249974]
[1739980850114,0.0001,170.11,170.1,104.14249974]
[1739980851709,0.0001,170.11,170.1,86.7788]
[1739980853216,0.0001,170.11,170.1,104.14249974]
[1739980854199,0.0001,170.11,170.1,122.7921486]
[1739980854408,0.0001,170.11,170.1,140.15584834]
[1739980855114,0.0001,170.11,170.1,148.15984834]
[1739980855702,0.0001,170.13,170.11,19.64964886]
[1739980855911,0.0001,170.13,170.12,36.89460305]
[1739980856914,0.0001,170.13,170.12,38.89460305]
[1739980857118,0.063,170.17,170.13,18.64964886]
[1739980857332,0.063,170.17,170.16,17.36369974]
[1739980857712,0.0001,170.17,170.16,99.14488117]
[1739980857890,0.0001,170.17,170.16,117.79453003]
[1739980858291,0.0001,170.17,170.16,120.73432135]
[1739980858588,0.0001,170.17,170.16,119.85313992]
[1739980859048,0.0001,170.17,170.16,107.08029106]
[1739980859222,0.0001,170.17,170.16,125.72993992]
[1739980860893,0.0001,170.17,170.16,104.14049974]
[1739980861334,0.0001,170.17,170.16,122.7901486]
[1739980861553,0.0001,170.17,170.16,216.0301486]
[1739980863820,0.0001,170.2,170.18,18.64964886]
[1739980864148,0.0001,170.2,170.19,17.36369974]
[1739980865541,0.0001,170.2,170.19,24.12052875]
[1739980865943,0.0001,170.2,170.19,23.23939974]
[1739980868447,0.0001,170.2,170.19,104.13939974]
[1739980870225,0.0001,170.2,170.19,86.7757]
[1739980870536,17.36379974,170.2,170.16,99.1167]
[1739980870740,17.36369974,170.17,170.16,93.24]
[1739980871332,8.1228,170.16,170.08,5.8792]
[1739980871553,17.36369974,170.11,170.08,5.8792]
[1739980872020,17.36369974,170.13,170.08,5.8792]
[1739980872221,100.06369974,170.14,170.08,23.24289974]
[1739980872648,82.7,170.14,170.09,17.36369974]
[1739980872842,82.7,170.14,170.1,17.36369974]
[1739980873040,100.06369974,170.14,170.08,23.24289974]
[1739980873243,17.36369974,170.12,170.06,110.58369974]
[1739980873463,17.36369974,170.1,170.06,93.22]
[1739980873960,100.06369974,170.11,170.06,99.1001]
[1739980874159,82.7,170.11,170.06,99.1001]
[1739980874342,82.7,170.11,170.08,15.57984696]
[1739980874937,82.7,170.11,170.09,15.57984696]
[1739980875127,82.7,170.11,170.07,15.57984696]
[1739980875451,82.7,170.11,170.06,114.67994696]
[1739980875951,98.27984696,170.11,170.06,93.22]
[1739980876261,15.57984696,170.07,170.06,93.22]
[1739980876429,22.09174696,170.07,170.06,93.22]
[1739980877238,23.09174696,170.07,170.06,93.22]
[1739980877539,23.09174696,170.07,170.03,0.03]
[1739980877540,1.0,170.05,170.03,0.03]
[1739980877750,16.41052665,170.04,170.03,0.03]
[1739980877959,6.5119,170.07,170.03,0.03]
[1739980878833,15.316182,170.04,170.03,0.03]
[1739980879149,16.41052665,170.04,170.03,0.03]
[1739980879867,17.41052665,170.04,170.03,0.03]
[1739980880170,0.2133,170.03,169.98,0.063]
[1739980880357,15.316182,170.0,169.98,0.063]
[1739980880666,15.316182,170.01,169.98,0.063]
[1739980880865,88.71434465,170.02,169.98,0.063]
[1739980880866,87.62,170.02,169.98,0.063]
[1739980881233,15.316182,170.03,169.98,0.063]
[1739980881750,15.316182,170.02,169.98,0.063]
[1739980882149,20.236182,170.05,169.99,5.8826]
[1739980882331,20.236182,170.05,169.99,21.198782]
[1739980882679,15.316182,170.04,169.98,15.379182]
[1739980883035,15.316182,170.04,169.98,0.063]
[1739980883265,15.316182,170.02,169.98,0.063]
[1739980883471,16.41052665,170.01,169.98,0.063]
[1739980883767,15.316182,170.01,169.98,0.063]
[1739980884139,82.7,170.01,169.98,5.946]
[1739980884364,15.316182,170.03,169.98,0.063]
[1739980886162,15.316182,170.04,169.98,15.379182]
[1739980886365,15.316182,170.04,169.98,21.261882]
[1739980888469,15.316182,170.06,169.99,15.316182]
[1739980888660,20.236182,170.06,169.99,15.316182]
[1739980889144,15.316182,170.06,170.0,15.316182]
[1739980889572,15.316182,170.06,170.01,5.882]
[1739980889774,21.828082,170.07,170.01,21.198182]
[1739980889980,15.316182,170.1,170.04,15.316182]
[1739980890150,82.7,170.08,170.04,15.316182]
[1739980890347,82.7,170.08,170.05,15.316182]
[1739980890574,93.8691,170.11,170.05,15.316182]
[1739980890879,87.62,170.11,170.05,15.316182]
[1739980891052,102.936182,170.11,170.05,15.316182]
[1739980891468,87.62,170.11,170.06,5.8802]
[1739980891666,82.7,170.11,170.06,5.8802]
[1739980892272,80.7,170.11,170.06,5.8802]
[1739980892476,15.316182,170.09,170.03,21.197082]
[1739980892882,96.316182,170.1,170.03,21.197082]
[1739980893469,96.316182,170.1,170.04,15.316182]
[1739980893973,96.316182,170.1,170.03,21.197082]
[1739980894161,15.316182,170.06,170.01,5.882]
[1739980894358,1.09434465,170.09,170.0,0.063]
[1739980894359,15.316182,170.04,170.0,0.063]
[1739980895072,15.316182,170.01,170.0,0.063]
[1739980895382,96.316182,170.02,170.0,0.063]
[1739980895585,15.316182,170.03,170.0,0.063]
[1739980895959,15.316182,170.01,170.0,0.063]
[1739980896371,96.316182,170.01,170.0,0.063]
[1739980897482,81.0,170.01,170.0,0.063]
[1739980897673,16.41052665,170.04,170.0,0.063]
[1739980897876,96.316182,170.05,170.0,0.063]
[1739980898276,15.316182,170.04,170.0,0.063]
[1739980898477,96.316182,170.05,170.0,0.063]
[1739980898687,81.0,170.05,170.0,24.5577429]
[1739980898861,81.0,170.05,170.01,24.4947429]
[1739980899267,81.0,170.09,170.03,24.4947429]
[1739980899488,81.0,170.09,170.05,5.8806]
[1739980899864,81.0,170.09,170.04,30.3756429]
[1739980900068,81.0,170.09,170.03,24.4947429]
[1739980900272,81.0,170.09,170.03,30.3759429]
[1739980900762,81.0,170.09,170.04,24.4947429]
[1739980901397,81.0,170.09,170.05,5.8806]
[1739980902979,24.4947429,170.07,170.03,0.063]
[1739980903180,24.4947429,170.04,170.03,0.063]
[1739980903382,105.4947429,170.06,170.03,0.063]
[1739980903768,24.4947429,170.05,170.03,0.063]
[1739980903973,24.4947429,170.04,170.03,0.063]
[1739980904598,105.4947429,170.04,170.03,0.063]
[1739980905189,30.3756429,170.04,170.03,0.063]
[1739980905382,36.2956429,170.04,170.03,0.063]
[1739980905591,54.94529176,170.04,170.03,0.063]
[1739980905787,1.0,170.0,169.98,0.063]
[1739980906099,25.58908755,169.99,169.98,0.063]
[1739980906981,31.47168755,169.99,169.98,0.063]
[1739980907493,25.58908755,169.99,169.98,0.063]
[1739980908605,24.4947429,170.02,169.98,0.063]
[1739980908769,6.01434465,170.03,169.98,0.063]
[1739980908974,6.01434465,170.03,169.99,24.4947429]
[1739980908975,4.92,170.03,169.99,24.4947429]
[1739980909304,4.92,170.03,169.98,30.4407429]
[1739980909499,24.4947429,170.02,169.98,0.063]
[1739980909689,30.50908755,170.03,169.98,0.063]
[1739980910010,4.92,170.03,169.98,24.5577429]
[1739980910172,4.92,170.03,169.98,26.2216429]
[1739980910694,4.92,170.03,169.98,1.7269]
[1739980911196,29.4147429,170.03,169.98,1.7269]
[1739980911381,29.4147429,170.03,169.98,5.9459]
[1739980913204,112.4147429,170.03,169.98,0.063]
[1739980913784,24.4947429,170.02,169.98,0.063]
[1739980913991,24.4947429,170.01,169.98,0.063]
[1739980914484,24.4947429,169.99,169.98,0.063]
[1739980914702,25.58908755,169.99,169.98,0.063]
[1739980915384,24.4947429,169.99,169.98,0.063]
[1739980916195,25.58908755,169.99,169.98,0.063]
[1739980916401,85.88908755,169.99,169.98,0.063]
[1739980916609,26.62659351,169.99,169.98,0.063]
[1739980916903,52.12133641,169.99,169.98,0.063]
[1739980919307,1.0,169.95,169.88,1.6375]
[1739980919513,24.4947429,169.91,169.86,99.2268]
[1739980920182,24.4947429,169.93,169.86,123.7215429]
[1739980920382,24.4947429,169.93,169.87,24.4947429]
[1739980920606,107.4947429,169.93,169.87,24.4947429]
[1739980921515,24.4947429,169.92,169.87,5.8865]
[1739980921712,24.4947429,169.91,169.87,5.8865]
[1739980921923,25.58908755,169.9,169.86,93.34]
[1739980922104,24.4947429,169.88,169.86,93.34]
[1739980922413,107.4947429,169.87,169.86,93.34]
[1739980922587,24.4947429,169.87,169.86,93.34]
[1739980923193,65.22,169.88,169.86,93.34]
[1739980923412,4.92,169.88,169.86,93.34]
[1739980923613,29.4147429,169.88,169.86,93.34]
[1739980924417,24.4947429,169.87,169.86,93.34]
[1739980924720,29.4147429,169.88,169.86,93.34]
[1739980925397,24.4947429,169.87,169.86,93.34]
[1739980925905,84.7947429,169.87,169.8,0.03]
[1739980926103,24.4947429,169.85,169.81,5.9519]
[1739980926312,82.2,169.86,169.81,30.4466429]
[1739980926609,24.4947429,169.83,169.81,0.063]
[1739980926799,24.4947429,169.82,169.81,0.063]
[1739980927714,29.4147429,169.82,169.81,0.063]
[1739980928015,56.04723641,169.82,169.81,0.063]
[1739980928216,1.0,169.81,169.79,0.03]
[1739980928402,186.23873641,169.8,169.79,0.03]
[1739980928599,43.14439176,169.8,169.79,0.03]
[1739980928908,45.23873641,169.8,169.79,0.03]
[1739980929110,44.23873641,169.8,169.79,0.03]
[1739980929319,45.23873641,169.8,169.79,0.03]
[1739980929524,20.64964886,169.79,169.75,93.38]
[1739980929820,24.4947429,169.76,169.75,93.38]
[1739980930120,30.4147429,169.76,169.68,5.895]
[1739980930300,24.4947429,169.71,169.68,5.895]
[1739980930502,24.4947429,169.72,169.68,11.7883]
[1739980930823,25.58908755,169.71,169.67,1.546]
[1739980931015,1.0,169.75,169.67,7.4397]
[1739980931016,24.4947429,169.72,169.67,7.4397]
[1739980931221,24.4947429,169.73,169.67,7.4397]
[1739980932107,24.56964886,169.76,169.67,7.4397]
[1739980932108,25.58908755,169.72,169.67,7.4397]
[1739980932423,24.4947429,169.71,169.67,1.546]
[1739980932634,6.8911,169.75,169.65,93.43]
[1739980932635,24.4947429,169.68,169.65,93.43]
[1739980932830,1.09434465,169.7,169.65,99.3243]
[1739980932831,24.4947429,169.7,169.65,99.3243]
[1739980933232,24.4947429,169.7,169.65,93.43]
[1739980933233,24.4947429,169.67,169.65,93.43]
[1739980933617,106.1947429,169.66,169.65,93.43]
[1739980933806,24.4947429,169.66,169.65,93.43]
[1739980934010,1.09434465,169.68,169.65,93.43]
[1739980934011,24.4947429,169.67,169.65,93.43]
[1739980934207,24.4947429,169.66,169.65,0.03]
[1739980934539,25.4947429,169.66,169.65,0.03]
[1739980934833,44.23873641,169.66,169.65,0.03]
[1739980935027,45.23873641,169.66,169.65,0.03]
[1739980935452,25.58908755,169.66,169.65,0.03]
[1739980937012,31.48318755,169.66,169.65,0.03]
[1739980937334,52.13283641,169.66,169.65,0.03]
[1739980937507,50.13283641,169.66,169.65,0.03]
[1739980937705,51.13283641,169.66,169.65,0.03]
[1739980938220,50.13283641,169.66,169.65,0.03]
[1739980938423,51.13283641,169.66,169.65,0.03]
[1739980939303,20.64964886,169.65,169.64,0.03]
[1739980939507,24.4947429,169.59,169.58,0.03]
[1739980939742,29.4147429,169.59,169.58,0.03]
[1739980940411,4.92,169.59,169.58,0.03]
[1739980940614,1.09434465,169.61,169.58,0.03]
[1739980940812,4.92,169.64,169.6,24.4947429]
[1739980941033,4.92,169.64,169.61,24.4947429]
[1739980941509,4.92,169.64,169.6,24.4947429]
[1739980941710,30.50908755,169.64,169.58,24.5247429]
[1739980941943,3.0,169.66,169.6,24.4947429]
[1739980942111,3.0,169.66,169.58,0.03]
[1739980942112,3.0,169.66,169.62,24.4947429]
[1739980943230,3.0,169.66,169.63,26.1547429]
[1739980943642,3.0,169.66,169.65,24.4947429]
[1739980943814,3.0,169.66,169.64,30.3895429]
[1739980944008,3.0,169.66,169.65,24.4947429]
[1739980944539,1.3334,169.66,169.65,48.9894858]
[1739980944843,0.0001,169.66,169.65,24.4947429]
[1739980945041,30.50908755,169.75,169.66,18.64964886]
[1739980945042,4.92,169.75,169.66,18.64964886]
[1739980945225,4.92,169.75,169.71,24.4947429]
[1739980945618,4.92,169.75,169.71,30.3868429]
[1739980945940,4.92,169.75,169.69,24.4947429]
[1739980946142,106.1947429,169.74,169.68,5.8934]
[1739980946510,81.7,169.74,169.68,30.3881429]
[1739980946913,81.7,169.74,169.69,24.4947429]
[1739980947210,106.1947429,169.74,169.68,30.3881429]
[1739980947447,81.7,169.74,169.69,24.4947429]
[1739980947638,81.7,169.74,169.68,24.4947429]
[1739980948639,84.7,169.74,169.68,24.4947429]
[1739980949135,109.1947429,169.74,169.68,24.4947429]
[1739980949514,109.1947429,169.74,169.67,30.3884429]
[1739980950050,24.4947429,169.73,169.67,5.8937]
[1739980950216,24.4947429,169.7,169.65,5.8944]
[1739980950621,25.58908755,169.7,169.65,5.8944]
[1739980950820,106.1947429,169.69,169.64,5.8948]
[1739980951016,25.58908755,169.68,169.64,5.8948]
[1739980951229,106.1947429,169.67,169.63,7.5551]
[1739980951546,4.92,169.69,169.64,24.4947429]
[1739980951745,4.92,169.69,169.65,24.4947429]
[1739980951927,84.7,169.7,169.67,5.8937]
[1739980952137,109.1947429,169.7,169.67,5.8937]
[1739980952341,84.7,169.7,169.67,30.3884429]
[1739980952541,3.0,169.7,169.67,5.8937]
[1739980953038,3.0,169.7,169.69,24.4947429]
[1739980953441,3.0,169.7,169.67,30.3884429]
[1739980953848,6.0,169.7,169.67,30.3884429]
[1739980954225,6.0,169.7,169.67,5.8937]
[1739980954625,6.0,169.7,169.66,5.894]
[1739980955032,6.0,169.7,169.67,24.4947429]
[1739980955356,6.0,169.7,169.66,30.3887429]
[1739980955730,6.0,169.7,169.66,5.894]
[1739980956042,6.0,169.7,169.66,30.3887429]
[1739980956240,6.0,169.7,169.65,30.3891429]
[1739980956716,31.58908755,169.7,169.65,5.8944]
[1739980957044,24.4947429,169.69,169.65,5.8944]
[1739980957527,31.58908755,169.7,169.65,5.8944]
[1739980958041,6.0,169.7,169.65,5.8944]
[1739980958350,3.0,169.69,169.65,5.8944]
[1739980959018,3.0,169.69,169.66,24.4947429]
[1739980959222,3.0,169.69,169.68,24.4947429]
[1739980959649,3.0,169.69,169.67,24.4947429]
[1739980960035,3.0,169.69,169.68,24.4947429]
[1739980960947,3.0,169.69,169.68,30.3881429]
[1739980964627,3.0,169.69,169.68,5.8934]
[1739980965054,3.0,169.69,169.68,30.3881429]
[1739980965552,3.0,169.69,169.68,5.8934]
[1739980965930,3.0,169.69,169.68,30.3881429]
[1739980967560,3.0,169.69,169.66,0.03]
[1739980967561,3.0,169.69,169.66,5.924]
[1739980967857,3.0,169.69,169.66,30.4187429]
[1739980968570,3.0,169.69,169.67,30.3884429]
[1739980968867,3.0,169.69,169.68,24.4947429]
[1739980970861,3.0,169.69,169.68,30.3881429]
[1739980971556,3.0,169.69,169.68,30.48143246]
[1739980972659,3.0,169.69,169.67,24.58803246]
[1739980972860,3.0,169.69,169.67,30.48173246]
[1739980974547,3.0,169.69,169.68,24.58803246]
[1739980975366,3.0,169.69,169.67,30.48173246]
[1739980976450,3.0,169.69,169.68,24.58803246]
[1739980976753,3.0,169.69,169.68,30.48143246]
[1739980979862,0.0001,169.7,169.68,49.13108132]
[1739980980062,0.0001,169.7,169.69,44.12131477]
[1739980980263,3.0,169.74,169.7,18.64964886]
[1739980980565,3.0,169.74,169.73,24.58803246]
[1739980981559,3.0,169.74,169.73,24.56817738]
[1739980982367,3.0,169.74,169.73,30.45987738]
[1739980982539,3.0,169.75,169.73,111.95987738]
[1739980982743,3.0,169.75,169.74,24.56817738]
[1739980983056,3.0,169.75,169.74,106.06817738]
[1739980984567,3.0,169.75,169.74,199.54817738]
[1739980984768,0.063,169.79,169.74,220.16787738]
[1739980984964,0.063,169.79,169.77,24.56817738]
[1739980985470,0.063,169.79,169.76,24.56817738]
[1739980985873,0.063,169.79,169.77,24.56817738]
[1739980986055,0.0001,169.79,169.78,24.56817738]
[1739980986250,0.0001,169.79,169.78,124.71782624]
[1739980986698,0.0001,169.79,169.78,121.37882529]
[1739980988266,0.063,169.86,169.79,20.64964886]
[1739980988452,0.063,169.86,169.85,15.33927643]
[1739980988657,0.063,169.86,169.85,21.22677643]
[1739980988856,0.063,169.86,169.85,30.41754678]
[1739980989952,0.0001,169.86,169.85,49.06719564]
[1739980990149,0.0001,169.86,169.85,130.56719564]
[1739980992362,0.0001,169.86,169.85,133.44875476]
[1739980994680,0.0001,169.87,169.86,24.53684886]
[1739980994977,0.0001,169.87,169.86,49.94949185]
[1739980995871,0.0001,169.87,169.86,131.44949185]
[1739980996066,0.063,169.96,169.88,20.64964886]
[1739980996380,0.063,169.96,169.95,24.53004678]
[1739980997576,0.063,169.96,169.95,43.17969564]
[1739980997887,0.063,169.96,169.95,123.67969564]
[1739980997888,0.0001,169.96,169.95,123.67969564]
[1739980998059,0.0001,169.96,169.95,129.56369564]
[1739980998668,0.0001,169.96,169.95,132.55585643]
[1739981001172,0.0001,169.96,169.95,134.95662927]
[1739981001566,0.0001,169.96,169.95,132.55585643]
[1739981007585,0.0001,169.96,169.95,133.55585643]
[1739981007888,0.03,170.0,169.96,19.64964886]
[1739981008083,0.03,170.0,169.99,43.17969564]
[1739981008791,0.03,170.0,169.99,21.18950209]
[1739981010974,0.063,170.03,170.0,18.64964886]
[1739981011176,0.063,170.03,170.02,33.95655095]
[1739981013096,0.063,170.03,170.02,121.33815095]
[1739981013786,3.063,170.03,170.02,121.33815095]
[1739981014994,3.063,170.03,170.02,102.68850209]
[1739981015193,3.063,170.03,169.99,14.7067]
[1739981015194,3.063,170.03,170.0,5.8823]
[1739981015395,6.063,170.03,170.0,5.8823]
[1739981015594,6.063,170.03,170.02,15.30690209]
[1739981016190,6.5643,170.11,170.02,117.83856087]
[1739981016473,15.30690209,170.1,170.04,15.30690209]
[1739981017160,15.30690209,170.1,170.05,5.8806]
[1739981017493,15.30690209,170.09,170.05,5.8806]
[1739981018794,15.30690209,170.07,170.03,5.8813]
[1739981018965,15.30690209,170.06,170.03,5.8813]
[1739981019164,15.30690209,170.06,170.01,5.882]
[1739981019885,15.30690209,170.07,170.01,5.882]
[1739981020087,83.063,170.1,170.02,15.30690209]
[1739981020288,98.36990209,170.1,170.04,15.30690209]
[1739981020497,83.063,170.1,170.05,15.30690209]
[1739981020696,83.063,170.1,170.07,15.30690209]
[1739981020897,0.063,170.1,170.06,15.30690209]
[1739981021110,0.063,170.1,170.06,5.8802]
[1739981021901,0.063,170.1,170.03,5.8812]
[1739981022079,15.30690209,170.07,170.02,5.8815]
[1739981022494,15.30690209,170.08,170.02,21.18840209]
[1739981023192,15.30690209,170.07,170.02,5.8815]
[1739981024397,15.30690209,170.08,170.02,21.18840209]
[1739981024597,15.30690209,170.08,170.02,35.89250209]
[1739981025706,15.30690209,170.08,170.02,21.18840209]
[1739981026001,15.30690209,170.06,170.02,5.8815]
[1739981026176,15.30690209,170.07,170.02,5.8815]
[1739981027174,84.15734465,170.1,170.02,5.8815]
[1739981027175,15.30690209,170.08,170.02,5.8815]
[1739981027585,15.30690209,170.07,170.02,5.8815]
[1739981028984,15.30690209,170.03,170.0,5.8821]
[1739981029703,15.30690209,170.03,169.99,5.9126]
[1739981030284,15.30690209,170.0,169.99,0.03]
[1739981030500,20.20690209,170.0,169.99,0.03]
[1739981030701,21.30124674,170.0,169.99,0.03]
[1739981031409,102.65740776,170.0,169.99,0.03]
[1739981031731,87.48354674,170.0,169.99,0.03]
[1739981031919,81.60124674,170.0,169.94,10.8093]
[1739981032083,20.20690209,170.0,169.94,10.8093]
[1739981032285,20.20690209,170.0,169.94,26.11620209]
[1739981032504,4.9,170.0,169.95,15.30690209]
[1739981032702,15.30690209,169.99,169.94,5.8843]
[1739981033092,15.30690209,169.97,169.93,5.8847]
[1739981033415,15.30690209,169.97,169.89,99.74964886]
[1739981033416,15.30690209,169.94,169.9,5.8858]
[1739981033712,15.30690209,169.94,169.89,5.8861]
[1739981033912,15.30690209,169.93,169.89,5.8861]
[1739981034096,5.883,169.98,169.88,93.3]
[1739981034097,15.30690209,169.92,169.88,93.3]
[1739981034410,15.30690209,169.92,169.88,99.1864]
[1739981034816,15.30690209,169.9,169.88,93.3]
[1739981035116,15.30690209,169.89,169.88,93.3]
[1739981036814,15.30690209,169.89,169.84,5.9508]
[1739981037118,15.30690209,169.87,169.84,5.9508]
[1739981037722,15.30690209,169.86,169.84,0.063]
[1739981038030,15.30690209,169.85,169.84,0.063]
[1739981039407,97.20124674,169.86,169.84,0.063]
[1739981039998,81.89434465,169.86,169.84,0.063]
[1739981040194,97.20124674,169.86,169.84,0.063]
[1739981040400,80.8,169.86,169.84,0.063]
[1739981041324,80.8,169.86,169.84,15.36990209]
[1739981041622,20.20690209,169.9,169.84,15.36990209]
[1739981042210,15.30690209,169.91,169.84,15.36990209]
[1739981042394,4.9,169.91,169.89,15.30690209]
[1739981042719,4.9,169.96,169.9,15.30690209]
[1739981042925,4.9,169.96,169.91,15.30690209]
[1739981043129,4.9,169.96,169.87,18.64964886]
[1739981043130,4.9,169.96,169.92,15.30690209]
[1739981043337,4.9,169.96,169.94,15.30690209]
[1739981043528,4.9,170.01,169.95,15.30690209]
[1739981043703,4.9,170.01,169.98,15.30690209]
[1739981043900,16.40124674,170.03,169.97,15.30690209]
[1739981044212,15.30690209,170.02,169.95,15.30690209]
[1739981044412,15.30690209,170.02,169.96,5.8837]
[1739981044618,15.30690209,170.01,169.96,5.8837]
[1739981045121,1.09434465,170.03,169.93,5.8846]
[1739981045122,15.30690209,169.98,169.93,5.8846]
[1739981045327,15.30690209,169.99,169.93,21.19150209]
[1739981045630,80.8,170.0,169.95,15.30690209]
[1739981045831,80.8,170.0,169.96,15.30690209]
[1739981046403,15.30690209,169.98,169.94,5.8843]
[1739981046743,80.8,170.0,169.94,21.19120209]
[1739981046922,15.30690209,169.98,169.94,5.8843]
[1739981047105,15.30690209,169.97,169.94,5.8843]
[1739981047307,15.30690209,169.98,169.94,5.8843]
[1739981047529,15.30690209,169.99,169.94,5.8843]
[1739981048105,80.8,170.0,169.95,15.30690209]
[1739981048726,101.00690209,170.02,169.96,5.8837]
[1739981049107,85.7,170.02,169.96,21.19060209]
[1739981049310,97.20124674,170.04,169.98,15.30690209]
[1739981049529,20.20690209,170.04,169.98,15.30690209]
[1739981049834,15.30690209,170.03,169.97,15.30690209]
[1739981050526,15.30690209,170.0,169.96,81.1]
[1739981050731,15.30690209,169.99,169.94,5.8841]
[1739981051915,15.30690209,170.01,169.95,15.30690209]
[1739981052124,20.20690209,170.02,169.96,15.30690209]
[1739981052329,15.30690209,170.04,169.98,15.30690209]
[1739981052722,15.30690209,170.04,169.99,5.8826]
[1739981053129,15.30690209,170.03,169.99,5.8826]
[1739981053313,15.30690209,170.04,169.99,5.8826]
[1739981055435,15.30690209,170.05,169.99,21.18950209]
[1739981056036,0.063,170.04,169.99,21.18950209]
[1739981056531,4.9,170.06,169.99,5.8826]
[1739981056720,15.30690209,170.04,169.99,5.8826]
[1739981056918,15.30690209,170.03,169.99,5.8826]
[1739981057123,15.30690209,170.02,169.98,5.8829]
[1739981057324,15.30690209,170.01,169.97,5.8833]
[1739981057530,15.30690209,170.02,169.97,5.8833]
[1739981060233,15.30690209,169.98,169.94,5.8844]
[1739981060423,15.30690209,169.97,169.94,5.8844]
[1739981060738,4.88,170.0,169.94,5.8844]
[1739981060739,15.30690209,169.98,169.94,5.8844]
[1739981061840,15.30690209,169.98,169.93,5.8847]
[1739981064632,15.30690209,169.96,169.93,5.8847]
[1739981064839,15.30690209,169.94,169.92,93.38]
[1739981065335,15.30690209,169.93,169.92,93.38]
[1739981065930,16.40124674,169.93,169.88,0.03]
[1739981066125,15.30690209,169.89,169.88,0.03]